bitfinex/quotes_BTCUSD_20251215
["timestamp","ask_amount","ask_price","bid_price","bid_amount"]
[1765810088191,0.005,89001.0,89000.0,21.65098237]
[1765810088438,0.005,89001.0,89000.0,21.57629237]
[1765810089069,0.22471558,89002.0,89000.0,21.57629237]
[1765810089289,0.01,89001.0,89000.0,21.57629237]
[1765810089508,0.3007,89001.0,89000.0,21.57829237]
[1765810089937,0.3007,89001.0,89000.0,21.57629237]
[1765810090313,1.3017,89001.0,89000.0,21.57629237]
[1765810090575,0.3017,89001.0,89000.0,21.57629237]
[1765810090708,0.2907,89001.0,89000.0,21.57629237]
[1765810090913,0.2937,89001.0,89000.0,21.57629237]
[1765810091126,0.003,89001.0,89000.0,21.57629237]
[1765810091330,0.02947557,89003.0,89000.0,21.57629237]
[1765810091706,0.01824,89003.0,89000.0,21.57629237]
[1765810091918,0.22471405,89002.0,89000.0,21.57629237]
[1765810092201,0.02947557,89003.0,89000.0,21.57629237]
[1765810092397,0.25418963,89003.0,89000.0,21.57629237]
[1765810092626,0.002,89001.0,89000.0,21.57629237]
[1765810092839,0.004,89001.0,89000.0,21.57629237]
[1765810093059,0.004,89001.0,89000.0,21.58201864]
[1765810093275,0.001,89002.0,89000.0,21.88142774]
[1765810093488,0.001,89002.0,89001.0,0.07469]
[1765810093698,0.002,89003.0,89001.0,0.07469]
[1765810093909,0.002,89003.0,89000.0,21.58752832]
[1765810094129,0.001,89001.0,89000.0,21.81224483]
[1765810094339,0.0182,89029.0,89010.0,0.01123469]
[1765810094549,0.01123254,89027.0,89012.0,0.01123444]
[1765810094757,0.01123368,89018.0,89004.0,0.01123545]
[1765810094967,0.01123406,89015.0,89000.0,21.57829237]
[1765810095174,0.22471504,89002.0,89000.0,21.57829237]
[1765810095392,0.0182,89001.0,89000.0,21.57829237]
[1765810095809,0.0182,89001.0,89000.0,21.57629237]
[1765810096222,0.0182,89001.0,89000.0,21.58029237]
[1765810096643,0.0182,89001.0,89000.0,21.57629237]
[1765810096866,0.0192,89001.0,89000.0,21.57629237]
[1765810097650,0.0182,89001.0,89000.0,21.57629237]
[1765810098284,0.12944003,89001.0,89000.0,21.57629237]
[1765810098498,0.0182,89001.0,89000.0,21.57629237]
[1765810098937,0.07426977,89001.0,89000.0,21.57629237]
[1765810099161,0.03081287,89001.0,89000.0,21.57629237]
[1765810099389,0.4327529,89001.0,89000.0,21.57629237]
[1765810099613,0.4327529,89001.0,89000.0,21.58401864]
[1765810100046,0.4327529,89001.0,89000.0,21.58201864]
[1765810100266,0.4347529,89001.0,89000.0,21.58201864]
[1765810100480,1.4357529,89001.0,89000.0,21.58201864]
[1765810100686,1.4347529,89001.0,89000.0,21.58201864]
[1765810100862,0.6210529,89001.0,89000.0,21.58201864]
[1765810101070,0.4397529,89001.0,89000.0,21.58201864]
[1765810101613,0.1380529,89001.0,89000.0,21.58201864]
[1765810101822,0.007,89001.0,89000.0,21.65670864]
[1765810102456,0.01123179,89033.0,89000.0,21.65670864]
[1765810102457,0.03501754,89049.0,89030.0,0.01123216]
[1765810102674,0.22462278,89039.0,89024.0,0.03414]
[1765810102879,0.11124003,89034.0,89024.0,0.04537292]
[1765810103290,0.11124003,89034.0,89033.0,0.00471938]
[1765810103500,0.11124003,89044.0,89036.0,0.2358596]
[1765810103711,0.11124003,89044.0,89025.0,0.07469]
[1765810103712,0.11124003,89044.0,89031.0,0.01123204]
[1765810103921,0.11124003,89044.0,89043.0,0.00441441]
[1765810104134,0.12246992,89048.0,89043.0,0.00441441]
[1765810104334,0.12246992,89048.0,89027.0,0.07469]
[1765810104335,0.11124003,89048.0,89038.0,0.01123115]
[1765810104541,0.11124003,89048.0,89035.0,0.01123153]
[1765810104777,0.01122952,89051.0,89034.0,0.01123166]
[1765810104778,0.11124003,89049.0,89034.0,0.01123166]
[1765810104985,0.0112304,89044.0,89033.0,0.001]
[1765810105190,0.01123141,89036.0,89033.0,0.001]
[1765810105397,0.0182,89040.0,89033.0,0.001]
[1765810105602,0.0182,89040.0,89038.0,0.22462118]
[1765810105830,0.0182,89040.0,89033.0,0.01223179]
[1765810105831,0.22460723,89045.0,89033.0,0.001]
[1765810106042,0.11124003,89037.0,89036.0,0.002]
[1765810106248,0.0182,89051.0,89043.0,0.01123052]
[1765810106483,0.00099999,89090.0,89038.0,0.02246231]
[1765810106484,0.11124003,89058.0,89038.0,0.02246231]
[1765810106694,0.01122989,89048.0,89032.0,0.01123191]
[1765810106897,0.0182,89063.0,89033.0,0.002]
[1765810106898,0.28070305,89034.0,89033.0,0.002]
[1765810107051,0.01123141,89036.0,89033.0,0.002]
[1765810107255,0.01123027,89045.0,89027.0,0.01123254]
[1765810107461,0.0112309,89040.0,89024.0,0.01123292]
[1765810107682,0.01123179,89033.0,89018.0,0.01123368]
[1765810107845,0.11124003,89033.0,89020.0,0.01123343]
[1765810108044,0.11124003,89033.0,89017.0,0.0112338]
[1765810108045,0.01123267,89026.0,89011.0,0.01123456]
[1765810108250,0.11124003,89023.0,89017.0,0.0112338]
[1765810108499,0.01123103,89039.0,89024.0,0.01123292]
[1765810108698,0.01123242,89028.0,89016.0,0.07469]
[1765810108897,0.11124003,89023.0,89017.0,0.22467427]
[1765810109101,0.11124003,89026.0,89018.0,0.01123368]
[1765810109334,0.11124003,89026.0,89023.0,0.01123305]
[1765810109487,0.23585225,89039.0,89023.0,0.01123305]
[1765810109488,0.11124003,89029.0,89023.0,0.01123305]
[1765810109830,0.11124003,89029.0,89028.0,0.00487191]
[1765810110669,0.11124003,89040.0,89032.0,0.01123191]
[1765810110853,0.01122939,89052.0,89028.0,0.07350191]
[1765810110854,0.11124003,89045.0,89034.0,0.01123166]
[1765810111051,0.11124003,89045.0,89035.0,0.01123153]
[1765810111253,0.11124003,89045.0,89030.0,0.22464279]
[1765810111254,0.01123027,89045.0,89030.0,0.01123216]
[1765810111463,0.11124003,89037.0,89030.0,0.01123216]
[1765810111660,0.11124003,89037.0,89034.0,0.01123166]
[1765810111805,0.11124003,89043.0,89034.0,0.01123166]
[1765810112216,0.11124003,89043.0,89036.0,0.01123141]
[1765810112441,0.11124003,89043.0,89039.0,0.01123103]
[1765810112642,0.23579963,89059.0,89043.0,0.01123052]
[1765810112863,0.01122901,89055.0,89042.0,0.01123065]
[1765810113071,0.002,89043.0,89040.0,0.07477]
[1765810113277,0.002,89043.0,89041.0,0.09297]
[1765810113475,0.002,89043.0,89042.0,0.02246131]
[1765810113681,0.011228,89063.0,89051.0,0.01122952]
[1765810113887,0.003,89055.0,89053.0,0.12542784]
[1765810114184,0.003,89055.0,89054.0,0.22458283]
[1765810114401,0.003,89055.0,89053.0,0.0357]
[1765810114629,0.11124003,89053.0,89045.0,0.04693027]
[1765810114805,0.00461287,89055.0,89045.0,0.04693027]
[1765810114806,0.003,89055.0,89052.0,0.01122939]
[1765810115007,0.003,89055.0,89053.0,0.003]
[1765810115212,0.003,89055.0,89053.0,0.07777]
[1765810115416,0.12246816,89062.0,89053.0,0.07777]
[1765810115627,0.01122876,89057.0,89053.0,0.003]
[1765810115779,0.00161287,89062.0,89055.0,0.08972784]
[1765810116003,0.0112275,89067.0,89056.0,0.07477]
[1765810116004,0.01122775,89065.0,89056.0,0.07477]
[1765810116203,0.1224674,89068.0,89056.0,0.07477]
[1765810116409,0.1224674,89068.0,89053.0,0.01422926]
[1765810116410,0.01122788,89064.0,89053.0,0.005]
[1765810116608,0.12246753,89067.0,89055.0,0.10095685]
[1765810116813,0.01284024,89068.0,89057.0,0.01122876]
[1765810116814,0.00161287,89068.0,89057.0,0.01122876]
[1765810117017,0.00161287,89068.0,89053.0,0.07677]
[1765810117018,0.01122838,89060.0,89053.0,0.001]
[1765810117384,0.01122863,89058.0,89053.0,0.001]
[1765810117588,0.01122888,89056.0,89045.0,0.0357]
[1765810117800,0.11124003,89060.0,89050.0,0.01122964]
[1765810117997,0.11124003,89060.0,89047.0,0.01123002]
[1765810118226,0.01122851,89059.0,89047.0,0.01123002]
[1765810118438,0.01122901,89055.0,89045.0,0.11047]
[1765810118643,0.00161287,89059.0,89045.0,0.11047]
[1765810118862,0.01122876,89057.0,89046.0,0.01123015]
[1765810119063,0.11124003,89054.0,89053.0,0.002]
[1765810119479,0.11124003,89054.0,89053.0,0.003]
[1765810119480,0.1128529,89054.0,89053.0,0.003]
[1765810119914,0.1128529,89054.0,89053.0,0.07777]
[1765810120094,0.1128529,89054.0,89053.0,0.003]
[1765810120297,0.1128529,89054.0,89053.0,0.002]
[1765810120431,0.03770287,89054.0,89053.0,0.002]
[1765810120629,0.1489429,89054.0,89053.0,0.002]
[1765810120852,0.1668329,89054.0,89053.0,0.002]
[1765810121060,0.01123052,89043.0,89031.0,0.29940908]
[1765810121375,0.11124003,89043.0,89032.0,0.01123191]
[1765810121565,0.01981287,89054.0,89042.0,0.01123065]
[1765810121830,0.01123204,89031.0,89017.0,0.0112338]
[1765810121967,0.2907,89029.0,89000.0,21.57629237]
[1765810122348,0.47254101,89030.0,89000.0,21.57629237]
[1765810122349,0.01123343,89020.0,89000.0,21.57629237]
[1765810122506,0.0182,89028.0,89000.0,21.57629237]
[1765810122713,0.2247144,89002.0,89000.0,21.57629237]
[1765810123121,0.11124003,89001.0,89000.0,21.57629237]
[1765810123322,0.2247144,89002.0,89000.0,21.57629237]
[1765810123323,0.11124003,89002.0,89001.0,0.0357]
[1765810123527,0.11124003,89006.0,89001.0,0.20019784]
[1765810123747,0.01123469,89010.0,89001.0,0.20019784]
[1765810123946,0.11124003,89006.0,89001.0,0.12542784]
[1765810124190,0.11124003,89012.0,89002.0,0.0860057]
[1765810124579,0.12247447,89012.0,89002.0,0.07477]
[1765810124783,0.11124003,89012.0,89002.0,0.0860057]
[1765810124985,0.11124003,89014.0,89005.0,0.22470422]
[1765810125196,0.01123343,89020.0,89001.0,0.12542784]
[1765810125197,0.71139601,89030.0,89001.0,0.0367]
[1765810125404,0.11124003,89003.0,89001.0,0.0367]
[1765810125606,0.11124003,89003.0,89002.0,0.0182]
[1765810125807,0.11124003,89003.0,89001.0,0.12542784]
[1765810126009,0.11124003,89003.0,89001.0,0.14362784]
[1765810126222,0.34719001,89003.0,89000.0,21.57629237]
[1765810126438,0.11124003,89001.0,89000.0,21.57629237]
[1765810127461,0.22471405,89002.0,89000.0,21.57629237]
[1765810127669,0.11124003,89001.0,89000.0,21.57629237]
[1765810130079,0.01123545,89004.0,89000.0,21.57629237]
[1765810130293,0.01123557,89003.0,89000.0,21.57629237]
[1765810130493,0.01789,89001.0,89000.0,21.57629237]
[1765810130680,0.13013003,89001.0,89000.0,21.57629237]
[1765810130853,0.001,89001.0,89000.0,21.57629237]
[1765810131267,0.03839287,89001.0,89000.0,21.57629237]
[1765810131613,0.1496329,89001.0,89000.0,21.57629237]
[1765810131937,0.4393329,89001.0,89000.0,21.57629237]
[1765810132187,1.36022126,89001.0,89000.0,20.58856437]
[1765810132328,1.36022126,89001.0,89000.0,20.36844674]
[1765810132329,1.50551889,89001.0,89000.0,20.36844674]
[1765810132537,1.39427886,89001.0,89000.0,20.12977262]
[1765810132944,1.39427886,89001.0,89000.0,19.70931603]
[1765810133144,1.37153058,89001.0,89000.0,19.70931603]
[1765810133351,1.33450029,89001.0,89000.0,19.70931603]
[1765810133557,1.33450029,89001.0,89000.0,19.70831603]
[1765810133779,1.35722287,89001.0,89000.0,19.70031603]
[1765810133983,1.36422287,89001.0,89000.0,19.69731603]
[1765810134177,1.45742287,89001.0,89000.0,19.69731603]
[1765810134381,1.40125316,89001.0,89000.0,19.17314767]
[1765810134561,1.44709459,89001.0,89000.0,18.97711804]
[1765810134761,1.46538448,89001.0,89000.0,18.66851312]
[1765810134972,1.46538448,89001.0,89000.0,18.47280391]
[1765810135176,1.45738448,89001.0,89000.0,17.87979228]
[1765810135442,1.51407865,89001.0,89000.0,17.61612733]
[1765810135647,1.57117039,89001.0,89000.0,17.32786527]
[1765810135961,1.54052375,89001.0,89000.0,17.11134651]
[1765810136188,1.54052375,89001.0,89000.0,16.83440626]
[1765810136391,1.56417039,89001.0,89000.0,16.4332024]
[1765810136600,1.54752375,89001.0,89000.0,13.88050814]
[1765810136805,1.53952429,89001.0,89000.0,13.54498963]
[1765810137014,1.53952429,89001.0,89000.0,13.14236894]
[1765810137217,1.54952429,89001.0,89000.0,12.96260567]
[1765810137368,1.54952429,89001.0,89000.0,11.8499111]
[1765810137369,1.52370369,89001.0,89000.0,11.8499111]
[1765810137606,1.65859036,89001.0,89000.0,8.04054278]
[1765810137810,1.63494372,89001.0,89000.0,7.80903196]
[1765810138017,1.63494372,89001.0,89000.0,7.38245284]
[1765810138227,1.63494372,89001.0,89000.0,7.07442588]
[1765810138427,0.01124151,88956.0,88950.0,0.00216434]
[1765810138762,0.5156238,88919.0,88907.0,0.08972784]
[1765810138981,0.42010003,88919.0,88907.0,0.08972784]
[1765810139172,0.30886,88919.0,88907.0,0.08972784]
[1765810139388,0.42010003,88919.0,88907.0,0.08972784]
[1765810139846,0.12940003,88919.0,88897.0,0.04694897]
[1765810140088,0.12940003,88919.0,88893.0,0.01124947]
[1765810140309,0.12940003,88919.0,88888.0,3.183135]
[1765810140510,0.30986,88919.0,88888.0,3.183135]
[1765810140893,0.30986,88919.0,88896.0,0.0112491]
[1765810141104,0.42110003,88919.0,88895.0,0.01124922]
[1765810141281,0.30986,88919.0,88896.0,0.22498049]
[1765810141481,0.30986,88919.0,88895.0,0.0357]
[1765810141690,0.42110003,88919.0,88888.0,3.183135]
[1765810141920,0.30886,88919.0,88899.0,0.01124872]
[1765810142235,0.30886,88919.0,88910.0,0.01124732]
[1765810142236,0.01816,88919.0,88910.0,0.01124732]
[1765810142370,0.12940003,88919.0,88918.0,0.03]
[1765810142606,0.01977287,88919.0,88918.0,0.03]
[1765810143008,0.4217129,88919.0,88918.0,0.025]
[1765810143211,0.4217129,88919.0,88918.0,0.031]
[1765810143482,0.4217129,88919.0,88918.0,0.027]
[1765810143692,0.4217129,88919.0,88918.0,0.025]
[1765810143888,1.4217129,88919.0,88918.0,0.025]
[1765810144134,1.4217129,88919.0,88918.0,0.028]
[1765810145049,1.4217129,88919.0,88888.0,3.178335]
[1765810145050,0.51569971,88889.0,88888.0,3.178335]
[1765810145244,1.53551258,88889.0,88888.0,2.60246639]
[1765810145445,1.53551258,88889.0,88888.0,2.35523788]
[1765810145446,1.696771,88889.0,88888.0,2.35523788]
[1765810145656,1.64675261,88889.0,88888.0,2.32147633]
[1765810145853,1.64675261,88889.0,88888.0,2.2483263]
[1765810145854,0.66849969,88889.0,88888.0,2.2483263]
[1765810146075,0.3089,88889.0,88888.0,2.2483263]
[1765810146214,0.42014003,88889.0,88888.0,2.2483263]
[1765810146419,0.3089,88889.0,88888.0,2.35883392]
[1765810146629,0.0302,88889.0,88888.0,2.2503263]
[1765810147030,0.01828,88889.0,88888.0,2.2483263]
[1765810147231,0.2361978,88909.0,88888.0,2.2483263]
[1765810147427,0.002,88889.0,88888.0,2.2483263]
[1765810147835,0.02028,88889.0,88888.0,2.47332855]
[1765810148047,0.02028,88889.0,88888.0,2.54319855]
[1765810148048,0.0004436,88889.0,88888.0,2.54319855]
[1765810148245,0.00581039,88918.0,88902.0,0.01124834]
[1765810148497,0.11124003,88910.0,88898.0,0.01124884]
[1765810148719,0.11124003,88905.0,88904.0,0.23620864]
[1765810148934,0.00581039,88918.0,88914.0,0.22493545]
[1765810149137,0.00581039,88918.0,88916.0,0.26073139]
[1765810149347,0.01828,88943.0,88939.0,0.01124366]
[1765810149555,0.01828,88943.0,88932.0,0.01124454]
[1765810149760,0.11124003,88936.0,88919.0,0.08111619]
[1765810149966,0.11124003,88927.0,88904.0,0.004]
[1765810150174,0.01828,88926.0,88904.0,0.004]
[1765810150344,0.11124003,88915.0,88914.0,0.006]
[1765810150556,0.01989287,88926.0,88907.0,0.0112477]
[1765810150767,0.00161287,88926.0,88906.0,0.01124783]
[1765810150977,0.01124606,88920.0,88919.0,0.003]
[1765810151184,1.41318609,88920.0,88919.0,0.003]
[1765810151405,1.41318609,88920.0,88870.0,0.10360941]
[1765810151406,0.1483,88907.0,88884.0,0.01125061]
[1765810151619,0.2249238,88919.0,88884.0,0.01125061]
[1765810151620,0.01832,88906.0,88889.0,0.01124998]
[1765810151833,0.01124859,88900.0,88875.0,0.01125175]
[1765810152038,0.22493364,88916.0,88880.0,0.01125112]
[1765810152039,0.11124003,88889.0,88880.0,0.01125112]
[1765810152258,0.01832,88890.0,88876.0,0.23628351]
[1765810152461,0.01124783,88906.0,88880.0,0.01125112]
[1765810152462,0.12956003,88889.0,88880.0,0.01125112]
[1765810152672,0.12956003,88889.0,88881.0,0.01125099]
[1765810152875,0.12956003,88889.0,88877.0,0.0112515]
[1765810153093,0.12956003,88889.0,88859.0,0.01125378]
[1765810153299,0.13281003,88889.0,88888.0,2.2523263]
[1765810153509,0.13281003,88889.0,88888.0,2.2497263]
[1765810153717,0.13281003,88889.0,88888.0,2.2457263]
[1765810153925,0.42351003,88889.0,88888.0,2.2397263]
[1765810154135,0.42351003,88889.0,88888.0,2.2447263]
[1765810154337,0.11224003,88889.0,88888.0,2.2507263]
[1765810154746,0.13056003,88889.0,88888.0,2.2507263]
[1765810155095,0.35880974,88889.0,88888.0,2.2507263]
[1765810155301,1.64950974,88889.0,88888.0,2.2474763]
[1765810155746,1.701141,88889.0,88888.0,2.2474763]
[1765810155982,1.700141,88889.0,88888.0,2.2364763]
[1765810156157,1.52056258,88889.0,88888.0,2.2364763]
[1765810156394,1.59605229,88889.0,88888.0,2.2424763]
[1765810156597,0.2907,88889.0,88888.0,2.34998392]
[1765810156805,0.01832,88889.0,88888.0,2.2364763]
[1765810157015,0.02332,88889.0,88888.0,2.2374763]
[1765810157218,0.13856003,88889.0,88888.0,2.2374763]
[1765810157429,0.11524003,88889.0,88888.0,2.2364763]
[1765810157674,0.13356003,88889.0,88888.0,2.2364763]
[1765810157891,0.13556003,88889.0,88888.0,2.2364763]
[1765810158095,0.13556003,88889.0,88888.0,2.34698392]
[1765810158297,0.13556003,88889.0,88888.0,2.2364763]
[1765810158512,0.35655974,88889.0,88888.0,2.2364763]
[1765810158719,1.35817261,88889.0,88888.0,2.2364763]
[1765810158920,1.35817261,88889.0,88888.0,2.2374763]
[1765810159136,1.64887261,88889.0,88888.0,2.2374763]
[1765810159339,1.64887261,88889.0,88888.0,2.2364763]
[1765810159542,0.91617261,88889.0,88888.0,2.2364763]
[1765810159746,0.86797261,88889.0,88888.0,2.2408956]
[1765810159953,0.83747261,88889.0,88888.0,2.2438956]
[1765810160131,0.83647261,88889.0,88888.0,2.2408956]
[1765810160351,1.46097261,88889.0,88888.0,2.2398956]
[1765810160508,0.62855261,88889.0,88888.0,2.2418956]
[1765810160709,1.59180229,88889.0,88888.0,2.2418956]
[1765810160919,1.16780229,88889.0,88888.0,2.2418956]
[1765810161231,0.67568733,88889.0,88888.0,2.2418956]
[1765810161512,1.67568733,88889.0,88888.0,2.2418956]
[1765810161650,1.67568733,88889.0,88888.0,2.2428956]
[1765810161849,1.70518687,88889.0,88888.0,2.2428956]
[1765810162300,1.60734894,88889.0,88888.0,2.2418956]
[1765810162511,1.62966894,88889.0,88888.0,2.2418956]
[1765810162720,0.88083926,88889.0,88888.0,2.2398956]
[1765810162938,0.55623261,88889.0,88888.0,2.2398956]
[1765810163136,0.57049477,88889.0,88888.0,2.2408956]
[1765810163343,0.59123261,88889.0,88888.0,2.2408956]
[1765810163547,0.87993261,88889.0,88888.0,2.2398956]
[1765810163745,0.84839472,88889.0,88888.0,2.2398956]
[1765810163949,0.85139472,88889.0,88888.0,2.2408956]
[1765810164191,0.87506143,88889.0,88888.0,2.2408956]
[1765810164386,0.87506143,88889.0,88888.0,2.2398956]
[1765810164387,1.68276143,88889.0,88888.0,2.2398956]
[1765810164722,1.68476143,88889.0,88888.0,2.2408956]
[1765810165264,1.68276143,88889.0,88888.0,2.2408956]
[1765810165438,0.37216856,88889.0,88888.0,2.2408956]
[1765810165641,0.58701153,88889.0,88888.0,2.2408956]
[1765810165865,0.45401153,88889.0,88888.0,2.2408956]
[1765810166082,0.37884182,88889.0,88888.0,2.2408956]
[1765810166249,0.14178214,88889.0,88888.0,2.2408956]
[1765810166444,0.13352003,88889.0,88888.0,2.2408956]
[1765810166792,0.13152003,88889.0,88888.0,2.2398956]
[1765810166999,0.13152003,88889.0,88888.0,2.2408956]
[1765810167205,0.11324003,88889.0,88888.0,2.2408956]
[1765810167412,0.25455556,88909.0,88888.0,2.2398956]
[1765810167413,0.01124783,88906.0,88888.0,2.2398956]
[1765810167673,0.05616971,88897.0,88888.0,2.2364763]
[1765810167884,0.30898,88905.0,88888.0,2.2384763]
[1765810168084,0.01828,88905.0,88888.0,2.2364763]
[1765810168291,0.01828,88905.0,88889.0,0.14630762]
[1765810168508,0.001,88889.0,88888.0,2.2414763]
[1765810168921,0.001,88889.0,88888.0,2.2404763]
[1765810169136,0.00261287,88889.0,88888.0,2.2404763]
[1765810169330,0.001,88889.0,88888.0,2.2424763]
[1765810169558,0.01928,88889.0,88888.0,2.2424763]
[1765810169838,0.01928,88889.0,88888.0,2.2404763]
[1765810169973,0.12952003,88889.0,88888.0,2.2364763]
[1765810170174,0.12952003,88889.0,88888.0,2.2394763]
[1765810170641,0.01828,88889.0,88888.0,2.2414763]
[1765810171213,0.01828,88889.0,88888.0,2.2394763]
[1765810171214,0.12952003,88889.0,88888.0,2.2394763]
[1765810171413,0.30898,88889.0,88888.0,2.2364763]
[1765810171608,0.4228329,88889.0,88888.0,2.2404763]
[1765810171833,0.36776258,88889.0,88888.0,2.2434763]
[1765810172191,0.37806703,88889.0,88888.0,2.2404763]
[1765810172651,0.32189732,88889.0,88888.0,2.2424763]
[1765810173019,0.37806703,88889.0,88888.0,2.2424763]
[1765810173220,0.08636703,88889.0,88888.0,2.2364763]
[1765810173443,0.32089732,88889.0,88888.0,2.2438956]
[1765810173655,1.32189732,88889.0,88888.0,2.2478956]
[1765810173887,1.40181278,88889.0,88888.0,2.2478956]
[1765810174098,1.40081278,88889.0,88888.0,2.2438956]
[1765810174545,1.40081278,88889.0,88888.0,2.2458956]
[1765810174773,1.40081278,88889.0,88888.0,2.2398956]
[1765810174984,1.50995089,88889.0,88888.0,2.2308956]
[1765810175238,1.51195089,88889.0,88888.0,2.2238956]
[1765810175451,1.46217386,88889.0,88888.0,2.2218956]
[1765810175672,0.46217386,88889.0,88888.0,2.2218956]
[1765810175893,1.43842811,88889.0,88888.0,2.2218956]
[1765810176098,1.46217386,88889.0,88888.0,2.2198956]
[1765810176529,1.46517386,88889.0,88888.0,2.2198956]
[1765810176746,1.44489386,88889.0,88888.0,2.2198956]
[1765810176947,0.7029031,88889.0,88888.0,2.2198956]
[1765810177151,0.7241831,88889.0,88888.0,2.2208956]
[1765810177366,0.1711831,88889.0,88888.0,2.2198956]
[1765810177585,0.12454448,88889.0,88888.0,2.2198956]
[1765810177836,0.12952003,88889.0,88888.0,2.2198956]
[1765810178104,0.13252003,88889.0,88888.0,2.2208956]
[1765810178327,0.14282556,88889.0,88888.0,2.2198956]
[1765810178501,1.03158553,88889.0,88888.0,2.2198956]
[1765810178729,1.03158553,88889.0,88888.0,2.2208956]
[1765810178730,1.45427137,88889.0,88888.0,2.2208956]
[1765810178940,1.50428976,88889.0,88888.0,2.2208956]
[1765810179138,1.50428976,88889.0,88888.0,2.1537563]
[1765810179139,1.59424057,88889.0,88888.0,2.1537563]
[1765810179342,0.53917025,88889.0,88888.0,2.0167735]
[1765810179555,1.53917025,88889.0,88888.0,2.0147735]
[1765810179759,1.48300054,88889.0,88888.0,1.27425804]
[1765810179964,1.60230054,88889.0,88888.0,0.8589825]
[1765810180075,1.65847025,88889.0,88888.0,0.82121269]
[1765810180319,0.22504529,88871.0,88870.0,0.09235702]
[1765810180491,1.74521675,88871.0,88870.0,0.01144302]
[1765810180693,1.71389224,88871.0,88870.0,0.01144302]
[1765810180904,1.71389233,88871.0,88870.0,0.01144302]
[1765810181113,1.64105549,88871.0,88870.0,0.00844302]
[1765810181327,1.66264953,88871.0,88870.0,0.00844302]
[1765810181533,1.59936579,88871.0,88870.0,0.00844302]
[1765810181746,1.62581921,88871.0,88870.0,0.00844302]
[1765810181954,1.68088953,88871.0,88870.0,0.00844302]
[1765810182168,1.51583142,88837.0,88829.0,0.0002]
[1765810182377,1.68102662,88837.0,88829.0,0.0002]
[1765810182779,1.56978659,88837.0,88829.0,0.0002]
[1765810183626,1.56978659,88837.0,88800.0,0.0028]
[1765810183627,0.57219234,88801.0,88800.0,0.0028]
[1765810183860,1.02316111,88801.0,88800.0,0.0028]
[1765810184071,0.43213843,88801.0,88800.0,0.0028]
[1765810184279,0.41385843,88801.0,88800.0,0.0028]
[1765810184486,0.4035529,88801.0,88800.0,0.0028]
[1765810184694,1.16497666,88801.0,88800.0,0.0028]
[1765810184880,1.2659329,88801.0,88800.0,0.0028]
[1765810185024,0.29231287,88801.0,88800.0,0.0028]
[1765810185397,0.62977558,88801.0,88800.0,0.0068]
[1765810185526,1.4228329,88801.0,88800.0,0.0068]
[1765810185743,1.4228329,88801.0,88800.0,0.0028]
[1765810185744,1.31059287,88801.0,88800.0,0.0028]
[1765810185963,0.4218329,88801.0,88800.0,0.0028]
[1765810186304,0.34958253,88801.0,88800.0,0.0058]
[1765810186525,0.1138529,88801.0,88800.0,0.0058]
[1765810186730,0.11224003,88801.0,88800.0,0.0058]
[1765810187081,0.13052003,88801.0,88800.0,0.0058]
[1765810187308,0.13052003,88801.0,88800.0,0.0048]
[1765810187633,0.64644271,88801.0,88800.0,0.0048]
[1765810187835,0.62716271,88801.0,88800.0,0.0038]
[1765810188040,0.64544271,88801.0,88800.0,0.0038]
[1765810188239,1.53520268,88801.0,88800.0,0.0048]
[1765810188425,1.64644271,88801.0,88800.0,0.0048]
[1765810188742,1.65569078,88801.0,88800.0,0.0058]
[1765810188881,0.01126608,88762.0,88731.0,0.01127001]
[1765810189086,0.01126608,88762.0,88705.0,0.04013327]
[1765810189087,0.01126722,88753.0,88725.0,0.01127078]
[1765810189269,0.01828,88752.0,88726.0,0.01127065]
[1765810189474,0.01828,88752.0,88733.0,0.0804841]
[1765810189475,0.2253902,88735.0,88733.0,0.0804841]
[1765810189677,0.4869,88734.0,88733.0,0.0804841]
[1765810189878,0.011269,88739.0,88733.0,0.0804841]
[1765810189879,0.23662951,88747.0,88733.0,0.0804841]
[1765810190123,0.01126887,88740.0,88733.0,0.0804841]
[1765810190323,0.40194003,88734.0,88733.0,0.0804841]
[1765810190554,0.01828,88734.0,88733.0,0.0804841]
[1765810190816,0.59289287,88734.0,88733.0,0.0804841]
[1765810191045,0.9168329,88734.0,88733.0,0.0804841]
[1765810191563,0.9168329,88734.0,88733.0,0.0834841]
[1765810191564,0.6925529,88734.0,88733.0,0.0834841]
[1765810191774,0.7108729,88734.0,88733.0,0.0834841]
[1765810192103,1.4218729,88734.0,88733.0,0.0804841]
[1765810192284,1.31063287,88734.0,88733.0,0.0804841]
[1765810192483,1.4218729,88734.0,88733.0,0.0804841]
[1765810192717,1.4218729,88734.0,88733.0,0.0824841]
[1765810193004,0.01126811,88746.0,88733.0,0.0824841]
[1765810193127,0.23661932,88751.0,88733.0,0.0824841]
[1765810193128,0.11124003,88739.0,88733.0,0.0804841]
[1765810193343,0.01836,88744.0,88733.0,0.0804841]
[1765810193531,0.001,88734.0,88733.0,0.0824841]
[1765810193702,0.11224003,88734.0,88733.0,0.0824841]
[1765810193905,0.01836,88744.0,88733.0,0.0804841]
[1765810193906,0.11124003,88735.0,88733.0,0.0804841]
[1765810194111,0.12960003,88734.0,88733.0,0.0804841]
[1765810194511,0.11124003,88734.0,88733.0,0.0804841]
[1765810194764,0.01836,88734.0,88733.0,0.0804841]
[1765810194927,0.12960003,88734.0,88733.0,0.0804841]
[1765810195326,0.07462966,88734.0,88733.0,0.0804841]
[1765810195526,0.07462966,88734.0,88733.0,0.0824841]
[1765810195527,0.01836,88734.0,88733.0,0.0824841]
[1765810195708,0.12960003,88734.0,88733.0,0.0824841]
[1765810195905,0.12960003,88734.0,88733.0,0.0804841]
[1765810196133,0.00161287,88753.0,88733.0,0.0804841]
[1765810196311,0.11124003,88748.0,88734.0,0.02253927]
[1765810196508,0.11124003,88735.0,88733.0,0.08722743]
[1765810196709,0.11124003,88735.0,88733.0,0.0804841]
[1765810196710,0.01836,88735.0,88733.0,0.0804841]
[1765810196901,0.11124003,88734.0,88733.0,0.0804841]
[1765810197108,0.11224003,88734.0,88733.0,0.0824841]
[1765810197309,0.001,88734.0,88733.0,0.0824841]
[1765810197514,0.01836,88735.0,88733.0,0.1543141]
[1765810197709,0.01836,88735.0,88733.0,0.0804841]
[1765810197710,0.11124003,88734.0,88733.0,0.0804841]
[1765810197963,0.01126519,88769.0,88746.0,0.01126811]
[1765810198120,0.11124003,88751.0,88736.0,0.01126938]
[1765810198436,0.01836,88750.0,88734.0,0.1076389]
[1765810198635,0.11124003,88744.0,88737.0,0.01126925]
[1765810198839,0.11124003,88744.0,88740.0,0.01126887]
[1765810199060,0.11124003,88744.0,88736.0,0.22538532]
[1765810199325,0.01836,88750.0,88747.0,0.23662551]
[1765810199528,0.11124003,88771.0,88765.0,0.0112657]
[1765810199942,0.11124003,88771.0,88767.0,0.01126544]